[Event "Early-Titled-Tuesday-Blitz-September-12-2023"]
[Site "Chess.com"]
[Date "2023.09.12"]
[Round "6"]
[White "alexrustemov"]
[Black "itsdsyr"]
[Result "1-0"]
[WhiteElo "2857"]
[BlackElo "2220"]
[TimeControl "180+1"]
[EndTime "9:07:02 PDT"]
[Termination "alexrustemov won by resignation"]

1. d4 {[%clk 0:02:53.4]} 1... Nf6 {[%clk 0:02:59.5]} 2. c4 {[%clk 0:02:52.8]}
2... e6 {[%clk 0:02:59.2]} 3. Nf3 {[%clk 0:02:53.2]} 3... b6 {[%clk 0:02:57.5]}
4. a3 {[%clk 0:02:51.6]} 4... Bb7 {[%clk 0:02:56.5]} 5. Nc3 {[%clk 0:02:51.7]}
5... d5 {[%clk 0:02:56.4]} 6. Bg5 {[%clk 0:02:51.5]} 6... Be7 {[%clk 0:02:55.6]}
7. Bxf6 {[%clk 0:02:51.9]} 7... Bxf6 {[%clk 0:02:55.1]} 8. cxd5 {[%clk
0:02:52.8]} 8... exd5 {[%clk 0:02:54.2]} 9. Qa4+ {[%clk 0:02:53.2]} 9... c6
{[%clk 0:02:51]} 10. g3 {[%clk 0:02:53.4]} 10... O-O {[%clk 0:02:50.6]} 11. Rd1
{[%clk 0:02:53.9]} 11... a5 {[%clk 0:02:45.6]} 12. Bg2 {[%clk 0:02:53.8]} 12...
b5 {[%clk 0:02:45]} 13. Qc2 {[%clk 0:02:52.8]} 13... Nd7 {[%clk 0:02:41.8]} 14.
O-O {[%clk 0:02:52.3]} 14... Re8 {[%clk 0:02:37.9]} 15. e3 {[%clk 0:02:48.3]}
15... Nb6 {[%clk 0:02:36.9]} 16. a4 {[%clk 0:02:46.1]} 16... b4 {[%clk
0:02:22.8]} 17. Ne2 {[%clk 0:02:45.1]} 17... g6 {[%clk 0:02:23.5]} 18. Ne1
{[%clk 0:02:42.4]} 18... Nd7 {[%clk 0:02:16.1]} 19. Nd3 {[%clk 0:02:41.9]} 19...
Bg7 {[%clk 0:02:15.1]} 20. Nec1 {[%clk 0:02:40.6]} 20... Rc8 {[%clk 0:02:05]}
21. Nb3 {[%clk 0:02:40.6]} 21... Ba6 {[%clk 0:02:05.1]} 22. Rfe1 {[%clk
0:02:36.9]} 22... Bc4 {[%clk 0:01:31.2]} 23. Nbc5 {[%clk 0:02:27.8]} 23... Nxc5
{[%clk 0:01:26.9]} 24. Nxc5 {[%clk 0:02:24.9]} 24... Bf8 {[%clk 0:01:15.1]} 25.
Nb3 {[%clk 0:02:21.1]} 25... Qb6 {[%clk 0:01:10.2]} 26. Bf1 {[%clk 0:02:18.6]}
26... c5 {[%clk 0:00:58.6]} 27. dxc5 {[%clk 0:02:14.1]} 27... Bxc5 {[%clk
0:00:59.5]} 28. Bxc4 {[%clk 0:02:02.6]} 28... dxc4 {[%clk 0:01:00.4]} 29. Qxc4
{[%clk 0:01:54.6]} 29... Bxe3 {[%clk 0:00:48.7]} 30. Qe2 {[%clk 0:01:52.7]}
30... Bc5 {[%clk 0:00:11.8]} 31. Qf3 {[%clk 0:01:51]} 31... Rxe1+ {[%clk
0:00:10.6]} 32. Rxe1 {[%clk 0:01:51]} 32... Bf8 {[%clk 0:00:11.5]} 33. Re2
{[%clk 0:01:41.6]} 33... Qa6 {[%clk 0:00:05.7]} 34. Kg2 {[%clk 0:01:39.2]} 34...
Qc4 {[%clk 0:00:05.2]} 35. Nxa5 {[%clk 0:01:23.6]} 35... Qa6 {[%clk 0:00:05.1]}
36. Re5 {[%clk 0:01:23.7]} 36... Bg7 {[%clk 0:00:04.6]} 37. Rb5 {[%clk
0:01:21.7]} 37... Bxb2 {[%clk 0:00:04.3]} 38. Qb7 {[%clk 0:01:12.8]} 38... Qxb7+
{[%clk 0:00:03.8]} 39. Nxb7 {[%clk 0:01:13.3]} 39... Bc3 {[%clk 0:00:03.7]} 40.
Nc5 {[%clk 0:01:10.1]} 40... Ra8 {[%clk 0:00:02.5]} 41. a5 {[%clk 0:01:09.3]}
41... Kg7 {[%clk 0:00:03.2]} 42. Nb3 {[%clk 0:01:07.9]} 42... Bf6 {[%clk
0:00:01.8]} 43. Kf3 {[%clk 0:01:04.6]} 43... Bc3 {[%clk 0:00:02.6]} 44. Ke4
{[%clk 0:01:04]} 44... h5 {[%clk 0:00:03.5]} 45. Kd5 {[%clk 0:01:00.7]} 45...
Ra6 {[%clk 0:00:03.9]} 46. Rb6 {[%clk 0:00:59]} 46... Ra8 {[%clk 0:00:03.2]} 47.
a6 {[%clk 0:00:58.1]} 47... Kf8 {[%clk 0:00:02.7]} 48. Kc6 {[%clk 0:00:57.9]}
48... Ke7 {[%clk 0:00:02.9]} 49. Kb7 {[%clk 0:00:57.7]} 49... Rd8 {[%clk
0:00:03.3]} 50. a7 {[%clk 0:00:58.1]} 50... Be1 {[%clk 0:00:02.6]} 51. a8=Q
{[%clk 0:00:54.8]} 51... Rxa8 {[%clk 0:00:03.3]} 52. Kxa8 {[%clk 0:00:55.2]}
52... Bxf2 {[%clk 0:00:04.1]} 53. Rxb4 {[%clk 0:00:54.8]} 53... Bg1 {[%clk
0:00:05]} 54. h3 {[%clk 0:00:54.4]} 54... f5 {[%clk 0:00:04.8]} 55. Nd2 {[%clk
0:00:49.3]} 55... Kf6 {[%clk 0:00:05.7]} 56. Nf3 {[%clk 0:00:45.2]} 56... Bf2
{[%clk 0:00:06.3]} 57. g4 {[%clk 0:00:42.2]} 57... hxg4 {[%clk 0:00:06.3]} 58.
hxg4 {[%clk 0:00:42.7]} 58... fxg4 {[%clk 0:00:06.5]} 59. Rxg4 {[%clk
0:00:42.2]} 59... Kf5 {[%clk 0:00:07.4]} 60. Rg2 {[%clk 0:00:41.6]} 60... Be3
{[%clk 0:00:07.4]} 61. Nh4+ {[%clk 0:00:41.7]} 61... Kf4 {[%clk 0:00:07]} 62.
Nxg6+ {[%clk 0:00:42.2]} 62... Kf3 {[%clk 0:00:07.9]} 63. Ra2 {[%clk 0:00:42.5]}
63... Ke4 {[%clk 0:00:07.7]} 64. Kb7 {[%clk 0:00:41.7]} 1-0

[Event "Early-Titled-Tuesday-Blitz-September-12-2023"]
[Site "Chess.com"]
[Date "2023.09.12"]
[Round "6"]
[White "Cheer_Down"]
[Black "Dixit_Nikhil"]
[Result "1-0"]
[WhiteElo "2420"]
[BlackElo "2559"]
[TimeControl "180+1"]
[EndTime "9:07:05 PDT"]
[Termination "Cheer_Down won by checkmate"]

1. e4 {[%clk 0:03:00.9]} 1... a6 {[%clk 0:03:00]} 2. d4 {[%clk 0:03:00.3]} 2...
h6 {[%clk 0:02:58.2]} 3. Bd3 {[%clk 0:02:58.9]} 3... e6 {[%clk 0:02:58.4]} 4.
Nf3 {[%clk 0:02:58.3]} 4... b6 {[%clk 0:02:58.7]} 5. O-O {[%clk 0:02:58.5]} 5...
g6 {[%clk 0:02:59]} 6. Re1 {[%clk 0:02:58.5]} 6... Bg7 {[%clk 0:02:59.4]} 7.
Nbd2 {[%clk 0:02:58.2]} 7... Bb7 {[%clk 0:02:59.9]} 8. c3 {[%clk 0:02:58.3]}
8... d6 {[%clk 0:03:00.4]} 9. Nf1 {[%clk 0:02:58.4]} 9... Ne7 {[%clk 0:03:01]}
10. Ng3 {[%clk 0:02:58.5]} 10... Nd7 {[%clk 0:03:01.3]} 11. a4 {[%clk
0:02:56.3]} 11... e5 {[%clk 0:02:59.6]} 12. h4 {[%clk 0:02:42.9]} 12... h5
{[%clk 0:02:44.2]} 13. d5 {[%clk 0:02:29.9]} 13... a5 {[%clk 0:02:38.9]} 14. Ng5
{[%clk 0:02:25.5]} 14... Ng8 {[%clk 0:02:01.3]} 15. b4 {[%clk 0:02:20.2]} 15...
Nh6 {[%clk 0:01:57.1]} 16. Bd2 {[%clk 0:02:14.9]} 16... Ng4 {[%clk 0:01:49.8]}
17. Be2 {[%clk 0:01:50.5]} 17... Ngf6 {[%clk 0:01:47.2]} 18. bxa5 {[%clk
0:01:45.9]} 18... Rxa5 {[%clk 0:01:45.6]} 19. c4 {[%clk 0:01:45.4]} 19... Ra8
{[%clk 0:01:42.7]} 20. a5 {[%clk 0:01:45.2]} 20... bxa5 {[%clk 0:01:42.4]} 21.
Rxa5 {[%clk 0:01:45.2]} 21... O-O {[%clk 0:01:39.3]} 22. Rxa8 {[%clk 0:01:23.4]}
22... Qxa8 {[%clk 0:01:40.2]} 23. Be3 {[%clk 0:01:23.1]} 23... Qa5 {[%clk
0:00:34.8]} 24. Qd2 {[%clk 0:01:08]} 24... Qxd2 {[%clk 0:00:30.2]} 25. Bxd2
{[%clk 0:01:07.8]} 25... Ra8 {[%clk 0:00:30.5]} 26. Rb1 {[%clk 0:01:02.3]} 26...
Bc8 {[%clk 0:00:30.1]} 27. Be3 {[%clk 0:01:01.7]} 27... Rb8 {[%clk 0:00:25.8]}
28. Ra1 {[%clk 0:00:57.8]} 28... Ng4 {[%clk 0:00:22.2]} 29. Bxg4 {[%clk
0:00:52]} 29... hxg4 {[%clk 0:00:23.1]} 30. Ra7 {[%clk 0:00:51.4]} 30... Rb7
{[%clk 0:00:23.2]} 31. Ra8 {[%clk 0:00:43.1]} 31... Rb1+ {[%clk 0:00:20.8]} 32.
Kh2 {[%clk 0:00:42.6]} 32... Rb8 {[%clk 0:00:21.5]} 33. Ra7 {[%clk 0:00:40.6]}
33... Rb7 {[%clk 0:00:21]} 34. Ra8 {[%clk 0:00:35.9]} 34... Rb8 {[%clk
0:00:20.1]} 35. Ra7 {[%clk 0:00:33]} 35... Nf8 {[%clk 0:00:18.1]} 36. Rxc7
{[%clk 0:00:31.5]} 36... f6 {[%clk 0:00:18.6]} 37. Ne6 {[%clk 0:00:27.3]} 37...
Nxe6 {[%clk 0:00:14.4]} 38. dxe6 {[%clk 0:00:27.2]} 38... Bxe6 {[%clk
0:00:15.3]} 39. h5 {[%clk 0:00:25.1]} 39... Rc8 {[%clk 0:00:10.7]} 40. Rxc8+
{[%clk 0:00:24.4]} 40... Bxc8 {[%clk 0:00:11.6]} 41. hxg6 {[%clk 0:00:24.9]}
41... Be6 {[%clk 0:00:11.4]} 42. Nf5 {[%clk 0:00:24.5]} 42... Bf8 {[%clk
0:00:11.3]} 43. Kg3 {[%clk 0:00:21.6]} 43... Bxc4 {[%clk 0:00:11.1]} 44. Kxg4
{[%clk 0:00:19.7]} 44... Be6 {[%clk 0:00:11.4]} 45. Kh5 {[%clk 0:00:19.1]} 45...
d5 {[%clk 0:00:10.9]} 46. f3 {[%clk 0:00:15.6]} 46... d4 {[%clk 0:00:11.4]} 47.
Bd2 {[%clk 0:00:12.6]} 47... Bxf5 {[%clk 0:00:11.6]} 48. exf5 {[%clk 0:00:12.1]}
48... Ba3 {[%clk 0:00:12.5]} 49. g4 {[%clk 0:00:08.3]} 49... Bb2 {[%clk
0:00:12.7]} 50. g5 {[%clk 0:00:08.3]} 50... Bc3 {[%clk 0:00:12.2]} 51. Bc1
{[%clk 0:00:07.8]} 51... d3 {[%clk 0:00:12.3]} 52. gxf6 {[%clk 0:00:07]} 52...
d2 {[%clk 0:00:12.9]} 53. Bxd2 {[%clk 0:00:07.1]} 53... Bxd2 {[%clk 0:00:13.8]}
54. Kg4 {[%clk 0:00:05.8]} 54... Be1 {[%clk 0:00:12.1]} 55. f7+ {[%clk
0:00:05.6]} 55... Kg7 {[%clk 0:00:12.1]} 56. f6+ {[%clk 0:00:05.7]} 56... Kf8
{[%clk 0:00:12.6]} 57. Kf5 {[%clk 0:00:06.1]} 57... Bg3 {[%clk 0:00:11.9]} 58.
Ke6 {[%clk 0:00:06.4]} 58... Bf4 {[%clk 0:00:11.4]} 59. g7# {[%clk 0:00:06.9]}
1-0

[Event "Early-Titled-Tuesday-Blitz-September-12-2023"]
[Site "Chess.com"]
[Date "2023.09.12"]
[Round "6"]
[White "ElenaPershina"]
[Black "Gogolev_Artemy"]
[Result "0-1"]
[WhiteElo "2262"]
[BlackElo "2394"]
[TimeControl "180+1"]
[EndTime "9:07:05 PDT"]
[Termination "Gogolev_Artemy won on time"]

1. e4 {[%clk 0:03:00.9]} 1... c5 {[%clk 0:02:41.2]} 2. Nf3 {[%clk 0:03:00.3]}
2... e6 {[%clk 0:02:41.8]} 3. g3 {[%clk 0:02:59.2]} 3... d5 {[%clk 0:02:41.1]}
4. exd5 {[%clk 0:02:56.2]} 4... exd5 {[%clk 0:02:42]} 5. d4 {[%clk 0:02:55.4]}
5... Nc6 {[%clk 0:02:42.2]} 6. Bg2 {[%clk 0:02:55]} 6... cxd4 {[%clk 0:02:33.3]}
7. Nxd4 {[%clk 0:02:50.6]} 7... Bc5 {[%clk 0:02:33.9]} 8. Nxc6 {[%clk
0:02:31.3]} 8... bxc6 {[%clk 0:02:34.4]} 9. O-O {[%clk 0:02:30.9]} 9... Nf6
{[%clk 0:02:33.7]} 10. c4 {[%clk 0:02:28.2]} 10... O-O {[%clk 0:02:20.8]} 11.
cxd5 {[%clk 0:02:25.9]} 11... Nxd5 {[%clk 0:02:04.9]} 12. Qc2 {[%clk 0:02:23.5]}
12... Qb6 {[%clk 0:01:54.3]} 13. Nc3 {[%clk 0:02:18.4]} 13... Nxc3 {[%clk
0:01:49.5]} 14. Qxc3 {[%clk 0:02:16.1]} 14... Ba6 {[%clk 0:01:49.2]} 15. Rd1
{[%clk 0:01:49.6]} 15... Bxf2+ {[%clk 0:01:44.7]} 16. Kh1 {[%clk 0:01:49.7]}
16... Rad8 {[%clk 0:01:43.8]} 17. Bg5 {[%clk 0:01:46.6]} 17... f6 {[%clk
0:01:38]} 18. Bf4 {[%clk 0:01:44.4]} 18... Bd4 {[%clk 0:01:37.3]} 19. Qxc6
{[%clk 0:01:39.2]} 19... Qxc6 {[%clk 0:01:32.2]} 20. Bxc6 {[%clk 0:01:40.1]}
20... Bxb2 {[%clk 0:01:20.5]} 21. Rab1 {[%clk 0:01:36.1]} 21... Bd4 {[%clk
0:01:09.8]} 22. a4 {[%clk 0:01:25.6]} 22... Bb6 {[%clk 0:00:55]} 23. Kg2 {[%clk
0:01:19.4]} 23... g5 {[%clk 0:00:54]} 24. Bd6 {[%clk 0:01:14.6]} 24... Rf7
{[%clk 0:00:43.9]} 25. a5 {[%clk 0:01:10.9]} 25... Bxa5 {[%clk 0:00:36.5]} 26.
Bd5 {[%clk 0:01:05.8]} 26... Bb6 {[%clk 0:00:29]} 27. Bxf7+ {[%clk 0:00:59.4]}
27... Kxf7 {[%clk 0:00:29.9]} 28. Bb4 {[%clk 0:00:46.8]} 28... Rc8 {[%clk
0:00:21.5]} 29. Rd7+ {[%clk 0:00:44.1]} 29... Kg6 {[%clk 0:00:21.9]} 30. Rbd1
{[%clk 0:00:39.5]} 30... Bb5 {[%clk 0:00:13.8]} 31. Re7 {[%clk 0:00:28.9]} 31...
Rc4 {[%clk 0:00:13.9]} 32. Be1 {[%clk 0:00:13.9]} 32... Bc6+ {[%clk 0:00:11.7]}
33. Kf1 {[%clk 0:00:12.1]} 33... Rc2 {[%clk 0:00:09.9]} 34. Rd2 {[%clk
0:00:11.4]} 34... Rc1 {[%clk 0:00:08.4]} 35. Ke2 {[%clk 0:00:10.3]} 35... Bb5+
{[%clk 0:00:08.5]} 36. Kf3 {[%clk 0:00:09.7]} 36... Rc3+ {[%clk 0:00:07.8]} 37.
Kg2 {[%clk 0:00:08.8]} 37... Bc6+ {[%clk 0:00:07.3]} 38. Kf1 {[%clk 0:00:09]}
38... Rf3+ {[%clk 0:00:07.2]} 39. Ke2 {[%clk 0:00:09.3]} 39... Rb3 {[%clk
0:00:06.5]} 40. Bf2 {[%clk 0:00:08.6]} 40... Bf3+ {[%clk 0:00:06.6]} 41. Kf1
{[%clk 0:00:05.7]} 41... Ba5 {[%clk 0:00:04.5]} 42. Rc2 {[%clk 0:00:04.3]} 42...
Rb1+ {[%clk 0:00:04.5]} 43. Be1 {[%clk 0:00:04.4]} 43... Bxe1 {[%clk 0:00:04.3]}
44. Rxe1 {[%clk 0:00:05.1]} 44... Rb3 {[%clk 0:00:04.4]} 45. Kf2 {[%clk
0:00:04.9]} 45... Bg4 {[%clk 0:00:03]} 46. Rec1 {[%clk 0:00:05]} 46... Rf3+
{[%clk 0:00:02.6]} 47. Kg2 {[%clk 0:00:04.6]} 47... Rd3 {[%clk 0:00:02.7]} 48.
h3 {[%clk 0:00:04.4]} 48... Bf3+ {[%clk 0:00:03.1]} 49. Kf2 {[%clk 0:00:04.2]}
49... Bd5 {[%clk 0:00:03.4]} 50. Rb2 {[%clk 0:00:03.8]} 50... Rf3+ {[%clk
0:00:03.9]} 51. Ke2 {[%clk 0:00:02.2]} 51... Rxg3 {[%clk 0:00:04.5]} 52. Rc7
{[%clk 0:00:02]} 52... Bf3+ {[%clk 0:00:04.4]} 53. Kf2 {[%clk 0:00:01.6]} 53...
Rxh3 {[%clk 0:00:05]} 0-1

[Event "Early-Titled-Tuesday-Blitz-September-12-2023"]
[Site "Chess.com"]
[Date "2023.09.12"]
[Round "6"]
[White "Eagle_2019"]
[Black "Grossboss19"]
[Result "1/2-1/2"]
[WhiteElo "2682"]
[BlackElo "2542"]
[TimeControl "180+1"]
[EndTime "9:07:06 PDT"]
[Termination "Game drawn by repetition"]

1. d4 {[%clk 0:03:00.9]} 1... d5 {[%clk 0:02:57.5]} 2. Nf3 {[%clk 0:03:00.3]}
2... Nf6 {[%clk 0:02:55.1]} 3. e3 {[%clk 0:03:00.4]} 3... c5 {[%clk 0:02:53.2]}
4. c4 {[%clk 0:02:53.3]} 4... e6 {[%clk 0:02:49.4]} 5. Nc3 {[%clk 0:02:53.1]}
5... cxd4 {[%clk 0:02:44.2]} 6. exd4 {[%clk 0:02:52.7]} 6... Nc6 {[%clk
0:02:44.2]} 7. c5 {[%clk 0:02:51.3]} 7... Ne4 {[%clk 0:02:43.4]} 8. Bb5 {[%clk
0:02:48.3]} 8... Nxc3 {[%clk 0:02:29.8]} 9. bxc3 {[%clk 0:02:47.2]} 9... Bd7
{[%clk 0:02:29.8]} 10. O-O {[%clk 0:02:46.5]} 10... Be7 {[%clk 0:02:27.3]} 11.
Rb1 {[%clk 0:02:45.1]} 11... O-O {[%clk 0:02:19.5]} 12. Bf4 {[%clk 0:02:36.7]}
12... Na5 {[%clk 0:02:12.2]} 13. Bxd7 {[%clk 0:02:34.1]} 13... Qxd7 {[%clk
0:02:12]} 14. Ne5 {[%clk 0:02:33.4]} 14... Qc8 {[%clk 0:02:11.6]} 15. Qa4 {[%clk
0:02:32.6]} 15... b6 {[%clk 0:01:58.4]} 16. Rfc1 {[%clk 0:02:10.9]} 16... f6
{[%clk 0:01:49.1]} 17. Nd7 {[%clk 0:02:10]} 17... Rf7 {[%clk 0:01:37.1]} 18.
cxb6 {[%clk 0:02:08.1]} 18... Bd6 {[%clk 0:01:22.2]} 19. Qxa5 {[%clk 0:01:50]}
19... Qxd7 {[%clk 0:01:14.5]} 20. b7 {[%clk 0:01:40.8]} 20... Rb8 {[%clk
0:01:12.3]} 21. Bxd6 {[%clk 0:01:40.3]} 21... Qxd6 {[%clk 0:01:12.2]} 22. Qxa7
{[%clk 0:01:40]} 22... Qc7 {[%clk 0:01:06.4]} 23. Qb6 {[%clk 0:01:27.9]} 23...
Re7 {[%clk 0:00:54.7]} 24. a4 {[%clk 0:01:06.8]} 24... Qxb6 {[%clk 0:00:51.7]}
25. Rxb6 {[%clk 0:01:06.1]} 25... Rbxb7 {[%clk 0:00:51.9]} 26. Rcb1 {[%clk
0:01:02.7]} 26... Rxb6 {[%clk 0:00:46.3]} 27. Rxb6 {[%clk 0:00:59.9]} 27... Rc7
{[%clk 0:00:44.1]} 28. Rb3 {[%clk 0:00:55.9]} 28... e5 {[%clk 0:00:44]} 29. dxe5
{[%clk 0:00:53.4]} 29... d4 {[%clk 0:00:29.5]} 30. e6 {[%clk 0:00:50.5]} 30...
Kf8 {[%clk 0:00:28.1]} 31. c4 {[%clk 0:00:34.4]} 31... Rxc4 {[%clk 0:00:25.7]}
32. Kf1 {[%clk 0:00:34.2]} 32... Rxa4 {[%clk 0:00:23.2]} 33. Rb7 {[%clk
0:00:33.2]} 33... d3 {[%clk 0:00:20.2]} 34. e7+ {[%clk 0:00:25.1]} 34... Ke8
{[%clk 0:00:20.1]} 35. Ke1 {[%clk 0:00:24.8]} 35... Ra2 {[%clk 0:00:17.4]} 36.
g4 {[%clk 0:00:23.8]} 36... Re2+ {[%clk 0:00:16.7]} 37. Kf1 {[%clk 0:00:18.8]}
37... Rxe7 {[%clk 0:00:16.5]} 38. Rb3 {[%clk 0:00:14.3]} 38... Rd7 {[%clk
0:00:15.7]} 39. Ke1 {[%clk 0:00:14.4]} 39... Kf7 {[%clk 0:00:13.3]} 40. Kd2
{[%clk 0:00:14.2]} 40... Ke6 {[%clk 0:00:13.4]} 41. Rxd3 {[%clk 0:00:13.8]}
41... Rxd3+ {[%clk 0:00:08.3]} 42. Kxd3 {[%clk 0:00:14.7]} 42... Ke5 {[%clk
0:00:08.5]} 43. Ke3 {[%clk 0:00:14.7]} 43... g6 {[%clk 0:00:07]} 44. f4+ {[%clk
0:00:14.7]} 44... Kd5 {[%clk 0:00:07.4]} 45. Kd3 {[%clk 0:00:13.9]} 45... h6
{[%clk 0:00:05.8]} 46. h4 {[%clk 0:00:13.2]} 46... g5 {[%clk 0:00:02.6]} 47.
fxg5 {[%clk 0:00:12.8]} 47... fxg5 {[%clk 0:00:03]} 48. hxg5 {[%clk 0:00:11.9]}
48... hxg5 {[%clk 0:00:03]} 49. Ke3 {[%clk 0:00:12.2]} 49... Ke5 {[%clk
0:00:03.2]} 50. Kf3 {[%clk 0:00:12.6]} 50... Kd4 {[%clk 0:00:03.5]} 51. Kf2
{[%clk 0:00:13.1]} 51... Ke4 {[%clk 0:00:03.9]} 52. Kg3 {[%clk 0:00:12.9]} 52...
Ke3 {[%clk 0:00:04.2]} 53. Kg2 {[%clk 0:00:13.3]} 53... Kf4 {[%clk 0:00:04.6]}
54. Kf2 {[%clk 0:00:13.8]} 54... Ke4 {[%clk 0:00:05.1]} 55. Kg2 {[%clk
0:00:13.8]} 55... Ke3 {[%clk 0:00:05.6]} 56. Kg3 {[%clk 0:00:14.1]} 56... Ke4
{[%clk 0:00:06.1]} 57. Kg2 {[%clk 0:00:14.5]} 57... Kd3 {[%clk 0:00:05.1]} 58.
Kf3 {[%clk 0:00:14.5]} 58... Kd4 {[%clk 0:00:05.6]} 59. Kf2 {[%clk 0:00:14.7]}
59... Ke4 {[%clk 0:00:04.5]} 1/2-1/2

[Event "Early-Titled-Tuesday-Blitz-September-12-2023"]
[Site "Chess.com"]
[Date "2023.09.12"]
[Round "6"]
[White "RandomNoob04"]
[Black "falzehope0"]
[Result "1-0"]
[WhiteElo "2630"]
[BlackElo "2440"]
[TimeControl "180+1"]
[EndTime "9:07:14 PDT"]
[Termination "RandomNoob04 won by resignation"]

1. e4 {[%clk 0:03:00.9]} 1... d5 {[%clk 0:02:57]} 2. exd5 {[%clk 0:03:00.4]}
2... Nf6 {[%clk 0:02:57.5]} 3. Nf3 {[%clk 0:02:58.8]} 3... Qxd5 {[%clk
0:02:57.1]} 4. Nc3 {[%clk 0:02:58.5]} 4... Qh5 {[%clk 0:02:56.5]} 5. Be2 {[%clk
0:02:54.9]} 5... Bg4 {[%clk 0:02:56.5]} 6. O-O {[%clk 0:02:50.5]} 6... Nc6
{[%clk 0:02:56.3]} 7. h3 {[%clk 0:02:43.9]} 7... O-O-O {[%clk 0:02:54.8]} 8.
hxg4 {[%clk 0:02:19]} 8... Nxg4 {[%clk 0:02:55.7]} 9. d3 {[%clk 0:02:18.6]} 9...
e5 {[%clk 0:02:34.9]} 10. Nh4 {[%clk 0:01:58.2]} 10... f5 {[%clk 0:02:33.1]} 11.
g3 {[%clk 0:01:54.6]} 11... g5 {[%clk 0:02:08.2]} 12. Bxg4 {[%clk 0:01:53.6]}
12... fxg4 {[%clk 0:02:08]} 13. Ng2 {[%clk 0:01:54.1]} 13... Nd4 {[%clk
0:02:07.1]} 14. Ne1 {[%clk 0:01:45.7]} 14... Bc5 {[%clk 0:01:18.6]} 15. Ne4
{[%clk 0:01:40]} 15... Nf3+ {[%clk 0:00:56.8]} 16. Nxf3 {[%clk 0:01:39.2]} 16...
gxf3 {[%clk 0:00:57.2]} 17. Bxg5 {[%clk 0:01:17.4]} 17... Rdg8 {[%clk 0:00:51]}
18. Nxc5 {[%clk 0:00:33.8]} 18... Rxg5 {[%clk 0:00:46.1]} 19. Ne4 {[%clk
0:00:33.9]} 19... Rf5 {[%clk 0:00:41.3]} 20. Nd2 {[%clk 0:00:33.3]} 20... Rhf8
{[%clk 0:00:38.1]} 21. Nxf3 {[%clk 0:00:08.5]} 21... Rxf3 {[%clk 0:00:37.7]} 22.
Qe1 {[%clk 0:00:06]} 22... Qf5 {[%clk 0:00:18.7]} 23. Qe4 {[%clk 0:00:05.7]}
23... Qf6 {[%clk 0:00:17.7]} 24. Qe2 {[%clk 0:00:03]} 24... h5 {[%clk
0:00:17.2]} 25. Rae1 {[%clk 0:00:03.2]} 25... h4 {[%clk 0:00:15.8]} 26. Qxe5
{[%clk 0:00:03.4]} 26... hxg3 {[%clk 0:00:14.6]} 27. Qxf6 {[%clk 0:00:03.3]}
27... R8xf6 {[%clk 0:00:14.3]} 28. fxg3 {[%clk 0:00:03.7]} 28... Rxg3+ {[%clk
0:00:15.1]} 29. Kh2 {[%clk 0:00:04.2]} 29... Rfg6 {[%clk 0:00:12.9]} 30. Rf7
{[%clk 0:00:03]} 30... Rg2+ {[%clk 0:00:11.9]} 31. Kh1 {[%clk 0:00:03.4]} 31...
b6 {[%clk 0:00:12]} 32. Ree7 {[%clk 0:00:03.4]} 32... R2g5 {[%clk 0:00:11]} 33.
Rxc7+ {[%clk 0:00:03]} 33... Kd8 {[%clk 0:00:11]} 34. Rfd7+ {[%clk 0:00:02.4]}
34... Ke8 {[%clk 0:00:11.5]} 35. Rh7 {[%clk 0:00:03.3]} 35... Rg1+ {[%clk
0:00:10.4]} 36. Kh2 {[%clk 0:00:03.7]} 36... R1g2+ {[%clk 0:00:10.9]} 37. Kh1
{[%clk 0:00:04.2]} 37... Rg1+ {[%clk 0:00:11.3]} 38. Kh2 {[%clk 0:00:04.7]}
38... R1g2+ {[%clk 0:00:11.6]} 39. Kh3 {[%clk 0:00:05.2]} 39... R6g3+ {[%clk
0:00:10.7]} 40. Kh4 {[%clk 0:00:05]} 40... Rg4+ {[%clk 0:00:11.2]} 41. Kh5
{[%clk 0:00:05.4]} 41... Rg5+ {[%clk 0:00:11.8]} 42. Kh6 {[%clk 0:00:05.9]}
42... Rg6+ {[%clk 0:00:12.4]} 43. Kh5 {[%clk 0:00:06.3]} 43... R2g5+ {[%clk
0:00:12.4]} 44. Kh4 {[%clk 0:00:06.8]} 44... Rg4+ {[%clk 0:00:13]} 45. Kh5
{[%clk 0:00:07.3]} 45... R4g5+ {[%clk 0:00:13.2]} 46. Kh4 {[%clk 0:00:07.6]}
46... Rg3 {[%clk 0:00:13.8]} 47. Rh8+ {[%clk 0:00:07]} 47... Rg8 {[%clk
0:00:13.8]} 48. Rxg8+ {[%clk 0:00:07.9]} 48... Rxg8 {[%clk 0:00:12.8]} 49. Rc8+
{[%clk 0:00:08.8]} 49... Kf7 {[%clk 0:00:13.3]} 50. Rxg8 {[%clk 0:00:09.7]}
50... Kxg8 {[%clk 0:00:14.1]} 51. Kg4 {[%clk 0:00:10.4]} 51... Kf7 {[%clk
0:00:15]} 52. Kf5 {[%clk 0:00:11.2]} 52... Ke7 {[%clk 0:00:14.6]} 53. Ke5 {[%clk
0:00:12.1]} 53... Kd7 {[%clk 0:00:15.1]} 54. Kd5 {[%clk 0:00:13]} 54... Kc7
{[%clk 0:00:15.5]} 55. c4 {[%clk 0:00:13.9]} 55... Kd7 {[%clk 0:00:15.9]} 56. d4
{[%clk 0:00:14.8]} 56... Kc7 {[%clk 0:00:16.4]} 57. c5 {[%clk 0:00:15.7]} 57...
bxc5 {[%clk 0:00:14.6]} 58. dxc5 {[%clk 0:00:16.6]} 58... Kd7 {[%clk 0:00:15.2]}
59. c6+ {[%clk 0:00:16.5]} 59... Kc7 {[%clk 0:00:15.5]} 60. Kc5 {[%clk
0:00:17.4]} 60... Kd8 {[%clk 0:00:14.7]} 61. b4 {[%clk 0:00:17.4]} 61... Kc7
{[%clk 0:00:15.2]} 62. b5 {[%clk 0:00:18.3]} 62... Kd8 {[%clk 0:00:15.7]} 63. b6
{[%clk 0:00:18.3]} 63... axb6+ {[%clk 0:00:11.2]} 64. Kxb6 {[%clk 0:00:19.2]}
64... Kc8 {[%clk 0:00:11.1]} 65. c7 {[%clk 0:00:20.1]} 65... Kd7 {[%clk
0:00:10.2]} 66. Kb7 {[%clk 0:00:21]} 66... Kd6 {[%clk 0:00:10.6]} 67. c8=Q
{[%clk 0:00:21.9]} 67... Kd5 {[%clk 0:00:10.9]} 68. a4 {[%clk 0:00:22.8]} 68...
Kd4 {[%clk 0:00:11.3]} 69. a5 {[%clk 0:00:23.7]} 69... Kd3 {[%clk 0:00:11.1]}
70. a6 {[%clk 0:00:24.6]} 70... Kd4 {[%clk 0:00:11.4]} 71. a7 {[%clk 0:00:25.5]}
71... Kd3 {[%clk 0:00:12]} 72. a8=Q {[%clk 0:00:26.4]} 72... Kd4 {[%clk
0:00:12.4]} 73. Qab8 {[%clk 0:00:27.3]} 73... Kd5 {[%clk 0:00:12.7]} 74. Qbc7
{[%clk 0:00:28.2]} 74... Ke4 {[%clk 0:00:13]} 75. Q8d8 {[%clk 0:00:28.7]} 75...
Kf5 {[%clk 0:00:13.2]} 76. Qce7 {[%clk 0:00:29.6]} 76... Kf4 {[%clk 0:00:13]}
77. Qdf8+ {[%clk 0:00:30]} 77... Kg4 {[%clk 0:00:13.6]} 78. Qeg7+ {[%clk
0:00:30.9]} 1-0